[Event "Titled Tuesday Blitz August 22 Late 2023"]
[White "matenitian"]
[Black "Akhayan, Ruben"]
[BlackFideId "204439"]
[WhiteElo "2488"]
[BlackElo "2259"]
[Result "0-1"]
[Round "11"]
[TimeControl "180+1"]
[Date "2023.08.22"]
[WhiteClock "0:00:00"]
[BlackClock "0:00:06"]
[Board "104"]

1. e4 {[%clk 0:02:37]}  e5 {[%clk 0:02:59]} 2. Nf3 {[%clk 0:02:37]}  Nc6 {[%clk 0:02:59]} 3. Bb5 {[%clk 0:02:37]}  a6 {[%clk 0:02:59]} 4. Ba4 {[%clk 0:02:36]}  Nf6 {[%clk 0:02:59]} 5. O-O {[%clk 0:02:37]}  Be7 {[%clk 0:03:00]} 6. Re1 {[%clk 0:02:37]}  b5 {[%clk 0:03:01]} 7. Bb3 {[%clk 0:02:37]}  O-O {[%clk 0:03:01]} 8. a4 {[%clk 0:02:38]}  Bb7 {[%clk 0:03:00]} 9. c3 {[%clk 0:02:37]}  d5 {[%clk 0:03:00]} 10. exd5 {[%clk 0:02:36]}  Nxd5 {[%clk 0:03:01]} 11. Nxe5 {[%clk 0:02:36]}  Nxe5 {[%clk 0:03:01]} 12. Rxe5 {[%clk 0:02:36]}  Nf4 {[%clk 0:03:01]} 13. d4 {[%clk 0:02:23]}  Nxg2 {[%clk 0:02:57]} 14. d5 {[%clk 0:02:08]}  Nh4 {[%clk 0:02:45]} 15. Qg4 {[%clk 0:02:05]}  Ng6 {[%clk 0:02:44]} 16. Rh5 {[%clk 0:02:02]}  Qc8 {[%clk 0:02:21]} 17. Qe2 {[%clk 0:01:51]}  Bd6 {[%clk 0:02:13]} 18. Be3 {[%clk 0:01:49]}  Re8 {[%clk 0:02:06]} 19. Qf3 {[%clk 0:01:48]}  Ne5 {[%clk 0:01:53]} 20. Qg2 {[%clk 0:01:43]}  Qg4 {[%clk 0:01:49]} 21. Rg5 {[%clk 0:01:29]}  Qxg2+ {[%clk 0:01:09]} 22. Kxg2 {[%clk 0:01:29]}  c6 {[%clk 0:01:05]} 23. dxc6 {[%clk 0:01:23]}  Bxc6+ {[%clk 0:01:05]} 24. Kf1 {[%clk 0:01:23]}  Nf3 {[%clk 0:00:54]} 25. Rf5 {[%clk 0:01:14]}  Re7 {[%clk 0:00:45]} 26. h3 {[%clk 0:01:10]}  Ne5 {[%clk 0:00:43]} 27. Nd2 {[%clk 0:01:09]}  bxa4 {[%clk 0:00:42]} 28. Bxa4 {[%clk 0:01:07]}  Bd5 {[%clk 0:00:38]} 29. Bd4 {[%clk 0:00:57]}  g6 {[%clk 0:00:37]} 30. Rg5 {[%clk 0:00:54]}  h6 {[%clk 0:00:36]} 31. Rg1 {[%clk 0:00:52]}  Rb8 {[%clk 0:00:36]} 32. b4 {[%clk 0:00:50]}  Nc4 {[%clk 0:00:35]} 33. Rd1 {[%clk 0:00:28]}  Nb2 {[%clk 0:00:31]} 34. Ra1 {[%clk 0:00:27]}  Bf4 {[%clk 0:00:26]} 35. Bc5 {[%clk 0:00:19]}  Re6 {[%clk 0:00:22]} 36. Be3 {[%clk 0:00:12]}  Bxe3 {[%clk 0:00:21]} 37. fxe3 {[%clk 0:00:13]}  Rxe3 {[%clk 0:00:19]} 38. Bc2 {[%clk 0:00:12]}  Rxc3 {[%clk 0:00:19]} 39. Bd1 {[%clk 0:00:11]}  Rd3 {[%clk 0:00:18]} 40. Ke2 {[%clk 0:00:09]}  Rd4 {[%clk 0:00:18]} 41. Ba4 {[%clk 0:00:08]}  Nc4 {[%clk 0:00:16]} 42. Nxc4 {[%clk 0:00:08]}  Bxc4+ {[%clk 0:00:16]} 43. Ke3 {[%clk 0:00:08]}  Rd3+ {[%clk 0:00:17]} 44. Ke4 {[%clk 0:00:09]}  Rbd8 {[%clk 0:00:17]} 45. Rge1 {[%clk 0:00:08]}  R3d4+ {[%clk 0:00:16]} 46. Ke3 {[%clk 0:00:08]}  Kg7 {[%clk 0:00:16]} 47. Kf2 {[%clk 0:00:09]}  Be6 {[%clk 0:00:16]} 48. Kg1 {[%clk 0:00:09]}  Rd2 {[%clk 0:00:16]} 49. Bc6 {[%clk 0:00:09]}  Bxh3 {[%clk 0:00:15]} 50. Rxa6 {[%clk 0:00:08]}  Be6 {[%clk 0:00:15]} 51. Ra7 {[%clk 0:00:08]}  Kf6 {[%clk 0:00:14]} 52. b5 {[%clk 0:00:09]}  Rb2 {[%clk 0:00:14]} 53. Rf1+ {[%clk 0:00:09]}  Kg5 {[%clk 0:00:12]} 54. Re1 {[%clk 0:00:09]}  Rdd2 {[%clk 0:00:11]} 55. Ra5 {[%clk 0:00:08]}  Kf6 {[%clk 0:00:10]} 56. Ra7 {[%clk 0:00:08]}  g5 {[%clk 0:00:09]} 57. Rf1+ {[%clk 0:00:09]}  Kg6 {[%clk 0:00:10]} 58. Ra6 {[%clk 0:00:07]}  Kg7 {[%clk 0:00:08]} 59. Ra7 {[%clk 0:00:07]}  Kg6 {[%clk 0:00:07]} 60. Re1 {[%clk 0:00:07]}  Kh5 {[%clk 0:00:07]} 61. Bf3+ {[%clk 0:00:05]}  Kh4 {[%clk 0:00:07]} 62. Ra4+ {[%clk 0:00:04]}  Kg3 {[%clk 0:00:07]} 63. Bc6 {[%clk 0:00:05]}  Re2 {[%clk 0:00:06]} 64. Rxe2 {[%clk 0:00:04]}  Rxe2 {[%clk 0:00:07]} 65. Ra1 {[%clk 0:00:03]}  Rb2 {[%clk 0:00:07]} 66. Rc1 {[%clk 0:00:03]}  f5 {[%clk 0:00:07]} 67. Rc3+ {[%clk 0:00:04]}  Kg4 {[%clk 0:00:07]} 68. Bf3+ {[%clk 0:00:02]}  Kf4 {[%clk 0:00:06]} 69. Bc6 {[%clk 0:00:03]}  g4 {[%clk 0:00:06]} 70. Re3 {[%clk 0:00:00]}  Kxe3 {[%clk 0:00:06]} 0-1


[Site "https://www.chess.com"]

[Event "Titled Tuesday Blitz August 22 Late 2023"]
[White "Cooper, Aaron"]
[Black "KorolDimitriy75"]
[WhiteFideId "2634945"]
[WhiteElo "2253"]
[BlackElo "2331"]
[Result "0-1"]
[Round "11"]
[TimeControl "180+1"]
[Date "2023.08.22"]
[WhiteClock "0:00:04"]
[BlackClock "0:00:08"]
[Board "107"]

1. e4 {[%clk 0:03:00]}  c5 {[%clk 0:03:00]} 2. Nf3 {[%clk 0:03:00]}  d6 {[%clk 0:03:00]} 3. d4 {[%clk 0:03:00]}  cxd4 {[%clk 0:03:01]} 4. Nxd4 {[%clk 0:03:01]}  Nf6 {[%clk 0:03:01]} 5. Nc3 {[%clk 0:03:01]}  g6 {[%clk 0:03:02]} 6. Be2 {[%clk 0:03:00]}  Bg7 {[%clk 0:03:02]} 7. Be3 {[%clk 0:03:00]}  O-O {[%clk 0:03:02]} 8. O-O {[%clk 0:03:00]}  Nc6 {[%clk 0:03:02]} 9. h3 {[%clk 0:03:00]}  Bd7 {[%clk 0:02:58]} 10. Qd2 {[%clk 0:02:58]}  a6 {[%clk 0:02:57]} 11. f4 {[%clk 0:02:49]}  b5 {[%clk 0:02:54]} 12. Bf3 {[%clk 0:02:45]}  Rc8 {[%clk 0:02:52]} 13. Rad1 {[%clk 0:02:44]}  Qc7 {[%clk 0:02:47]} 14. Nb3 {[%clk 0:02:31]}  b4 {[%clk 0:01:55]} 15. Nd5 {[%clk 0:02:28]}  Nxd5 {[%clk 0:01:54]} 16. exd5 {[%clk 0:02:29]}  Na5 {[%clk 0:01:53]} 17. Nxa5 {[%clk 0:02:22]}  Qxa5 {[%clk 0:01:54]} 18. a3 {[%clk 0:02:17]}  Bxb2 {[%clk 0:01:20]} 19. axb4 {[%clk 0:02:17]}  Qa3 {[%clk 0:01:19]} 20. Be2 {[%clk 0:01:26]}  Bc3 {[%clk 0:01:13]} 21. Qc1 {[%clk 0:01:15]}  Bb2 {[%clk 0:00:53]} 22. Qd2 {[%clk 0:01:11]}  Bc3 {[%clk 0:00:46]} 23. Qc1 {[%clk 0:01:10]}  Bxb4 {[%clk 0:00:37]} 24. Qxa3 {[%clk 0:01:09]}  Bxa3 {[%clk 0:00:37]} 25. Bxa6 {[%clk 0:01:09]}  Rxc2 {[%clk 0:00:36]} 26. Bd3 {[%clk 0:00:53]}  Rc3 {[%clk 0:00:32]} 27. Rf3 {[%clk 0:00:31]}  Rb8 {[%clk 0:00:20]} 28. f5 {[%clk 0:00:30]}  Rbb3 {[%clk 0:00:16]} 29. Bd4 {[%clk 0:00:28]}  Bc5 {[%clk 0:00:15]} 30. Bxc5 {[%clk 0:00:27]}  Rxc5 {[%clk 0:00:15]} 31. fxg6 {[%clk 0:00:27]}  hxg6 {[%clk 0:00:16]} 32. Rdf1 {[%clk 0:00:24]}  Rcc3 {[%clk 0:00:11]} 33. Be2 {[%clk 0:00:21]}  Rxf3 {[%clk 0:00:11]} 34. Bxf3 {[%clk 0:00:20]}  Kf8 {[%clk 0:00:11]} 35. Rc1 {[%clk 0:00:20]}  Bf5 {[%clk 0:00:10]} 36. Rc7 {[%clk 0:00:19]}  Re3 {[%clk 0:00:09]} 37. Ra7 {[%clk 0:00:19]}  Re5 {[%clk 0:00:09]} 38. Ra8+ {[%clk 0:00:19]}  Kg7 {[%clk 0:00:09]} 39. Ra7 {[%clk 0:00:19]}  Kf6 {[%clk 0:00:09]} 40. Kf2 {[%clk 0:00:18]}  Be4 {[%clk 0:00:09]} 41. Ra5 {[%clk 0:00:18]}  Bxf3 {[%clk 0:00:09]} 42. Kxf3 {[%clk 0:00:18]}  g5 {[%clk 0:00:09]} 43. g3 {[%clk 0:00:17]}  Re1 {[%clk 0:00:08]} 44. h4 {[%clk 0:00:17]}  gxh4 {[%clk 0:00:08]} 45. gxh4 {[%clk 0:00:18]}  Rh1 {[%clk 0:00:08]} 46. Kg3 {[%clk 0:00:19]}  Rd1 {[%clk 0:00:08]} 47. Kg4 {[%clk 0:00:18]}  e6 {[%clk 0:00:07]} 48. dxe6 {[%clk 0:00:18]}  fxe6 {[%clk 0:00:08]} 49. h5 {[%clk 0:00:18]}  d5 {[%clk 0:00:08]} 50. Ra2 {[%clk 0:00:16]}  Rh1 {[%clk 0:00:07]} 51. Rf2+ {[%clk 0:00:14]}  Ke5 {[%clk 0:00:07]} 52. Re2+ {[%clk 0:00:14]}  Kd6 {[%clk 0:00:07]} 53. Kg5 {[%clk 0:00:14]}  e5 {[%clk 0:00:07]} 54. h6 {[%clk 0:00:14]}  d4 {[%clk 0:00:07]} 55. Kg6 {[%clk 0:00:13]}  Kd5 {[%clk 0:00:07]} 56. h7 {[%clk 0:00:13]}  d3 {[%clk 0:00:07]} 57. Rd2 {[%clk 0:00:12]}  e4 {[%clk 0:00:07]} 58. Kg7 {[%clk 0:00:11]}  Kd4 {[%clk 0:00:07]} 59. h8=Q {[%clk 0:00:12]}  Rxh8 {[%clk 0:00:07]} 60. Kxh8 {[%clk 0:00:13]}  e3 {[%clk 0:00:07]} 61. Ra2 {[%clk 0:00:11]}  e2 {[%clk 0:00:08]} 62. Ra1 {[%clk 0:00:04]}  d2 {[%clk 0:00:08]} 0-1


[Site "https://www.chess.com"]

[Event "Titled Tuesday Blitz August 22 Late 2023"]
[White "Alfaro, William"]
[Black "Navyblue1"]
[WhiteFideId "6100457"]
[WhiteElo "2268"]
[BlackElo "2049"]
[Result "1-0"]
[Round "11"]
[TimeControl "180+1"]
[Date "2023.08.22"]
[WhiteClock "0:00:23"]
[BlackClock "0:00:14"]
[Board "111"]

1. e4 {[%clk 0:02:59]}  c5 {[%clk 0:02:56]} 2. g3 {[%clk 0:02:59]}  d6 {[%clk 0:02:45]} 3. Bg2 {[%clk 0:02:58]}  Nf6 {[%clk 0:02:46]} 4. Ne2 {[%clk 0:02:57]}  g6 {[%clk 0:02:45]} 5. O-O {[%clk 0:02:57]}  Bg7 {[%clk 0:02:46]} 6. c3 {[%clk 0:02:57]}  O-O {[%clk 0:02:44]} 7. d4 {[%clk 0:02:57]}  cxd4 {[%clk 0:02:43]} 8. cxd4 {[%clk 0:02:57]}  Nc6 {[%clk 0:02:34]} 9. Nbc3 {[%clk 0:02:57]}  Bd7 {[%clk 0:02:22]} 10. h3 {[%clk 0:02:56]}  Rc8 {[%clk 0:02:20]} 11. Be3 {[%clk 0:02:53]}  Qa5 {[%clk 0:02:15]} 12. Nc1 {[%clk 0:02:32]}  a6 {[%clk 0:01:39]} 13. Nb3 {[%clk 0:02:29]}  Qc7 {[%clk 0:01:32]} 14. Qd3 {[%clk 0:02:22]}  Na5 {[%clk 0:01:10]} 15. Nxa5 {[%clk 0:01:44]}  Qxa5 {[%clk 0:01:11]} 16. Rac1 {[%clk 0:01:43]}  Qb4 {[%clk 0:00:40]} 17. e5 {[%clk 0:01:37]}  Bf5 {[%clk 0:00:31]} 18. Qd2 {[%clk 0:01:31]}  dxe5 {[%clk 0:00:28]} 19. dxe5 {[%clk 0:01:22]}  Nd7 {[%clk 0:00:25]} 20. Nd5 {[%clk 0:01:09]}  Qxd2 {[%clk 0:00:24]} 21. Nxe7+ {[%clk 0:01:07]}  Kh8 {[%clk 0:00:23]} 22. Bxd2 {[%clk 0:01:07]}  Rxc1 {[%clk 0:00:20]} 23. Rxc1 {[%clk 0:01:07]}  Bxe5 {[%clk 0:00:21]} 24. Bxb7 {[%clk 0:01:05]}  Bxb2 {[%clk 0:00:20]} 25. Bc3+ {[%clk 0:01:02]}  Bxc3 {[%clk 0:00:20]} 26. Rxc3 {[%clk 0:01:03]}  Re8 {[%clk 0:00:19]} 27. Rc8 {[%clk 0:00:57]}  Rxc8 {[%clk 0:00:17]} 28. Bxc8 {[%clk 0:00:54]}  Nc5 {[%clk 0:00:16]} 29. Nxf5 {[%clk 0:00:52]}  gxf5 {[%clk 0:00:17]} 30. Bxf5 {[%clk 0:00:52]}  Kg7 {[%clk 0:00:17]} 31. Kg2 {[%clk 0:00:50]}  h6 {[%clk 0:00:18]} 32. h4 {[%clk 0:00:49]}  Kf6 {[%clk 0:00:19]} 33. g4 {[%clk 0:00:47]}  Ke5 {[%clk 0:00:19]} 34. Kf3 {[%clk 0:00:47]}  f6 {[%clk 0:00:18]} 35. Ke3 {[%clk 0:00:46]}  Na4 {[%clk 0:00:18]} 36. f4+ {[%clk 0:00:44]}  Kd6 {[%clk 0:00:17]} 37. Bd3 {[%clk 0:00:43]}  Nc5 {[%clk 0:00:17]} 38. Bc4 {[%clk 0:00:42]}  a5 {[%clk 0:00:17]} 39. Kd4 {[%clk 0:00:42]}  Nd7 {[%clk 0:00:16]} 40. Ke4 {[%clk 0:00:34]}  Ke7 {[%clk 0:00:16]} 41. Kf5 {[%clk 0:00:32]}  Nf8 {[%clk 0:00:16]} 42. Bg8 {[%clk 0:00:26]}  Nd7 {[%clk 0:00:14]} 43. Kg6 {[%clk 0:00:25]}  Kf8 {[%clk 0:00:14]} 44. Be6 {[%clk 0:00:24]}  Ke7 {[%clk 0:00:14]} 45. Bxd7 {[%clk 0:00:24]}  Kxd7 {[%clk 0:00:14]} 46. Kxf6 {[%clk 0:00:23]} 1-0


[Site "https://www.chess.com"]

[Event "Titled Tuesday Blitz August 22 Late 2023"]
[White "Adan Bermudez, Sergio"]
[Black "Shapiro, Daniel"]
[WhiteFideId "2292726"]
[BlackFideId "2001780"]
[WhiteElo "2013"]
[BlackElo "2270"]
[Result "0-1"]
[Round "11"]
[TimeControl "180+1"]
[Date "2023.08.22"]
[WhiteClock "0:00:00"]
[BlackClock "0:00:42"]
[Board "112"]

1. d4 {[%clk 0:02:55]}  Nf6 {[%clk 0:02:59]} 2. Nc3 {[%clk 0:02:55]}  d5 {[%clk 0:02:58]} 3. Bf4 {[%clk 0:02:54]}  a6 {[%clk 0:02:58]} 4. e3 {[%clk 0:02:54]}  e6 {[%clk 0:02:58]} 5. Nf3 {[%clk 0:02:53]}  Bd6 {[%clk 0:02:59]} 6. Ne5 {[%clk 0:02:52]}  c5 {[%clk 0:02:58]} 7. dxc5 {[%clk 0:02:46]}  Bxc5 {[%clk 0:02:58]} 8. Bd3 {[%clk 0:02:45]}  Nc6 {[%clk 0:02:55]} 9. Qe2 {[%clk 0:02:37]}  Bd6 {[%clk 0:02:52]} 10. Nxc6 {[%clk 0:02:15]}  bxc6 {[%clk 0:02:53]} 11. Bxd6 {[%clk 0:02:12]}  Qxd6 {[%clk 0:02:54]} 12. O-O-O {[%clk 0:01:46]}  Rb8 {[%clk 0:02:51]} 13. a3 {[%clk 0:01:45]}  c5 {[%clk 0:02:48]} 14. e4 {[%clk 0:01:38]}  Qf4+ {[%clk 0:02:48]} 15. Qe3 {[%clk 0:01:31]}  Qxe3+ {[%clk 0:02:41]} 16. fxe3 {[%clk 0:01:31]}  c4 {[%clk 0:02:39]} 17. Be2 {[%clk 0:01:30]}  Bb7 {[%clk 0:02:25]} 18. Rhf1 {[%clk 0:01:11]}  O-O {[%clk 0:02:17]} 19. g4 {[%clk 0:01:09]}  Rfc8 {[%clk 0:02:10]} 20. Rd4 {[%clk 0:00:28]}  e5 {[%clk 0:02:01]} 21. Rdd1 {[%clk 0:00:26]}  Rd8 {[%clk 0:01:28]} 22. g5 {[%clk 0:00:22]}  d4 {[%clk 0:01:18]} 23. gxf6 {[%clk 0:00:18]}  dxc3 {[%clk 0:01:17]} 24. Rxd8+ {[%clk 0:00:13]}  Rxd8 {[%clk 0:01:17]} 25. Bxc4 {[%clk 0:00:12]}  Bxe4 {[%clk 0:01:06]} 26. fxg7 {[%clk 0:00:09]}  cxb2+ {[%clk 0:00:57]} 27. Kxb2 {[%clk 0:00:09]}  Bg6 {[%clk 0:00:56]} 28. Kc3 {[%clk 0:00:06]}  Rc8 {[%clk 0:00:54]} 29. Rb1 {[%clk 0:00:04]}  Bxc2 {[%clk 0:00:50]} 30. Rb7 {[%clk 0:00:03]}  Bg6 {[%clk 0:00:46]} 31. Kb3 {[%clk 0:00:03]}  Kxg7 {[%clk 0:00:46]} 32. Bxa6 {[%clk 0:00:00]}  Rd8 {[%clk 0:00:42]} 0-1


[Site "https://www.chess.com"]

[Event "Titled Tuesday Blitz August 22 Late 2023"]
[White "Burke, Paul"]
[Black "Vanek, Tomas"]
[WhiteFideId "2605767"]
[BlackFideId "313459"]
[WhiteElo "1869"]
[BlackElo "2209"]
[Result "1-0"]
[Round "11"]
[TimeControl "180+1"]
[Date "2023.08.22"]
[WhiteClock "0:00:05"]
[BlackClock "0:01:27"]
[Board "114"]

1. e4 {[%clk 0:03:00]}  c5 {[%clk 0:02:57]} 2. Nf3 {[%clk 0:03:00]}  Nc6 {[%clk 0:02:56]} 3. d4 {[%clk 0:03:00]}  cxd4 {[%clk 0:02:56]} 4. c3 {[%clk 0:03:00]}  Nf6 {[%clk 0:02:55]} 5. e5 {[%clk 0:03:00]}  Nd5 {[%clk 0:02:56]} 6. Bc4 {[%clk 0:03:00]}  Nb6 {[%clk 0:02:55]} 7. Bb3 {[%clk 0:02:59]}  e6 {[%clk 0:02:55]} 8. Bf4 {[%clk 0:02:59]}  Be7 {[%clk 0:02:55]} 9. O-O {[%clk 0:02:58]}  O-O {[%clk 0:02:54]} 10. cxd4 {[%clk 0:02:57]}  d5 {[%clk 0:02:54]} 11. Nc3 {[%clk 0:02:52]}  h6 {[%clk 0:02:50]} 12. Rc1 {[%clk 0:02:50]}  Nb4 {[%clk 0:02:48]} 13. a3 {[%clk 0:02:44]}  Na6 {[%clk 0:02:48]} 14. Bc2 {[%clk 0:02:42]}  f5 {[%clk 0:02:44]} 15. exf6 {[%clk 0:02:40]}  Bxf6 {[%clk 0:02:43]} 16. Qd3 {[%clk 0:02:39]}  Nc4 {[%clk 0:02:39]} 17. Qh7+ {[%clk 0:02:32]}  Kf7 {[%clk 0:02:38]} 18. Ne5+ {[%clk 0:02:31]}  Bxe5 {[%clk 0:02:36]} 19. dxe5 {[%clk 0:02:21]}  Rg8 {[%clk 0:02:29]} 20. Qg6+ {[%clk 0:02:09]}  Kf8 {[%clk 0:02:28]} 21. Nb5 {[%clk 0:01:58]}  Qe8 {[%clk 0:02:27]} 22. Qxe8+ {[%clk 0:01:50]}  Kxe8 {[%clk 0:02:27]} 23. Nd6+ {[%clk 0:01:49]}  Nxd6 {[%clk 0:02:26]} 24. exd6 {[%clk 0:01:50]}  Bd7 {[%clk 0:02:25]} 25. Bg6+ {[%clk 0:01:45]}  Kd8 {[%clk 0:02:25]} 26. Bg3 {[%clk 0:01:44]}  Be8 {[%clk 0:02:23]} 27. Bh4+ {[%clk 0:01:40]}  Kd7 {[%clk 0:02:22]} 28. Bxe8+ {[%clk 0:01:27]}  Rgxe8 {[%clk 0:02:22]} 29. Be7 {[%clk 0:01:27]}  Rac8 {[%clk 0:02:18]} 30. b4 {[%clk 0:01:20]}  e5 {[%clk 0:02:11]} 31. b5 {[%clk 0:01:11]}  Nc5 {[%clk 0:02:07]} 32. Rfd1 {[%clk 0:01:08]}  Ke6 {[%clk 0:02:06]} 33. f4 {[%clk 0:01:05]}  Nd7 {[%clk 0:02:04]} 34. fxe5 {[%clk 0:00:53]}  Nxe5 {[%clk 0:02:04]} 35. Rxc8 {[%clk 0:00:19]}  Rxc8 {[%clk 0:02:02]} 36. Re1 {[%clk 0:00:11]}  d4 {[%clk 0:01:52]} 37. Rxe5+ {[%clk 0:00:08]}  Kxe5 {[%clk 0:01:52]} 38. d7 {[%clk 0:00:08]}  Rb8 {[%clk 0:01:32]} 39. d8=Q {[%clk 0:00:07]}  Rxd8 {[%clk 0:01:32]} 40. Bxd8 {[%clk 0:00:08]}  b6 {[%clk 0:01:29]} 41. Kf2 {[%clk 0:00:07]}  Kd5 {[%clk 0:01:28]} 42. Ke2 {[%clk 0:00:07]}  Kc5 {[%clk 0:01:28]} 43. Kd3 {[%clk 0:00:06]}  Kxb5 {[%clk 0:01:27]} 44. Kxd4 {[%clk 0:00:06]}  Ka4 {[%clk 0:01:27]} 45. Be7 {[%clk 0:00:06]}  b5 {[%clk 0:01:28]} 46. Kd5 {[%clk 0:00:06]}  a5 {[%clk 0:01:28]} 47. Ke6 {[%clk 0:00:07]}  b4 {[%clk 0:01:28]} 48. axb4 {[%clk 0:00:07]}  axb4 {[%clk 0:01:28]} 49. Bxb4 {[%clk 0:00:05]}  Kxb4 {[%clk 0:01:29]} 50. Kf7 {[%clk 0:00:05]}  Kc4 {[%clk 0:01:27]} 51. Kxg7 {[%clk 0:00:05]} 1-0


[Site "https://www.chess.com"]

[Event "Titled Tuesday Blitz August 22 Late 2023"]
[White "Matthew_Clarke"]
[Black "miraitrunks"]
[WhiteElo "2235"]
[BlackElo "1980"]
[Result "1-0"]
[Round "11"]
[TimeControl "180+1"]
[Date "2023.08.22"]
[WhiteClock "0:01:41"]
[BlackClock "0:01:50"]
[Board "116"]

1. c4 {[%clk 0:03:00]}  c5 {[%clk 0:02:56]} 2. Nc3 {[%clk 0:02:59]}  Nc6 {[%clk 0:02:57]} 3. g3 {[%clk 0:02:59]}  g6 {[%clk 0:02:57]} 4. Bg2 {[%clk 0:02:59]}  Bg7 {[%clk 0:02:58]} 5. Nf3 {[%clk 0:02:59]}  d6 {[%clk 0:02:59]} 6. O-O {[%clk 0:02:59]}  e5 {[%clk 0:02:59]} 7. d3 {[%clk 0:02:55]}  Nge7 {[%clk 0:02:58]} 8. Ne1 {[%clk 0:02:53]}  O-O {[%clk 0:02:57]} 9. Nc2 {[%clk 0:02:53]}  f5 {[%clk 0:02:56]} 10. Ne3 {[%clk 0:02:53]}  Be6 {[%clk 0:02:55]} 11. Ned5 {[%clk 0:02:52]}  f4 {[%clk 0:02:53]} 12. gxf4 {[%clk 0:02:50]}  exf4 {[%clk 0:02:51]} 13. Bxf4 {[%clk 0:02:50]}  Nd4 {[%clk 0:02:41]} 14. Bg5 {[%clk 0:02:46]}  Bxd5 {[%clk 0:02:30]} 15. Nxd5 {[%clk 0:02:44]}  Ndc6 {[%clk 0:02:30]} 16. Rb1 {[%clk 0:02:42]}  h6 {[%clk 0:02:29]} 17. Nxe7+ {[%clk 0:02:26]}  Nxe7 {[%clk 0:02:30]} 18. Bd2 {[%clk 0:02:25]}  Qd7 {[%clk 0:02:19]} 19. b4 {[%clk 0:02:24]}  b6 {[%clk 0:02:16]} 20. Bxa8 {[%clk 0:02:22]}  Rxa8 {[%clk 0:02:16]} 21. bxc5 {[%clk 0:02:22]}  Nf5 {[%clk 0:02:15]} 22. e3 {[%clk 0:02:02]}  Nh4 {[%clk 0:02:13]} 23. f4 {[%clk 0:01:52]}  Qh3 {[%clk 0:02:10]} 24. Qe2 {[%clk 0:01:52]}  g5 {[%clk 0:02:06]} 25. Be1 {[%clk 0:01:52]}  Nf5 {[%clk 0:02:03]} 26. fxg5 {[%clk 0:01:42]}  hxg5 {[%clk 0:02:04]} 27. Qf3 {[%clk 0:01:41]}  Qxf3 {[%clk 0:01:54]} 28. Rxf3 {[%clk 0:01:42]}  Nh4 {[%clk 0:01:54]} 29. Bxh4 {[%clk 0:01:41]}  gxh4 {[%clk 0:01:50]} 30. cxd6 {[%clk 0:01:41]} 1-0


[Site "https://www.chess.com"]

[Event "Titled Tuesday Blitz August 22 Late 2023"]
[White "Mr_November18"]
[Black "campochess"]
[WhiteElo "1969"]
[BlackElo "2178"]
[Result "0-1"]
[Round "11"]
[TimeControl "180+1"]
[Date "2023.08.22"]
[WhiteClock "0:00:00"]
[BlackClock "0:00:46"]
[Board "117"]

1. e4 {[%clk 0:02:59]}  c5 {[%clk 0:02:59]} 2. d4 {[%clk 0:02:59]}  cxd4 {[%clk 0:02:58]} 3. c3 {[%clk 0:02:58]}  d5 {[%clk 0:02:58]} 4. exd5 {[%clk 0:02:58]}  Nf6 {[%clk 0:02:56]} 5. cxd4 {[%clk 0:02:51]}  Nxd5 {[%clk 0:02:54]} 6. Nf3 {[%clk 0:02:51]}  e6 {[%clk 0:02:54]} 7. Bd3 {[%clk 0:02:48]}  Be7 {[%clk 0:02:48]} 8. O-O {[%clk 0:02:48]}  O-O {[%clk 0:02:48]} 9. Nc3 {[%clk 0:02:47]}  Nxc3 {[%clk 0:02:48]} 10. bxc3 {[%clk 0:02:47]}  Nd7 {[%clk 0:02:48]} 11. Qe2 {[%clk 0:02:43]}  Nf6 {[%clk 0:02:47]} 12. Bg5 {[%clk 0:02:39]}  h6 {[%clk 0:02:38]} 13. Bh4 {[%clk 0:02:37]}  Qa5 {[%clk 0:02:35]} 14. Rac1 {[%clk 0:02:32]}  Qh5 {[%clk 0:02:30]} 15. Bg3 {[%clk 0:02:19]}  Bd7 {[%clk 0:02:29]} 16. Rfe1 {[%clk 0:02:09]}  Rac8 {[%clk 0:02:28]} 17. Be5 {[%clk 0:01:56]}  Bc6 {[%clk 0:02:18]} 18. Nd2 {[%clk 0:01:53]}  Qxe2 {[%clk 0:02:14]} 19. Rxe2 {[%clk 0:01:52]}  Nd5 {[%clk 0:02:07]} 20. Ne4 {[%clk 0:01:43]}  Ba3 {[%clk 0:02:04]} 21. Rce1 {[%clk 0:01:36]}  b6 {[%clk 0:01:56]} 22. c4 {[%clk 0:01:19]}  Nb4 {[%clk 0:01:51]} 23. Bb1 {[%clk 0:01:18]}  Bxe4 {[%clk 0:01:49]} 24. Rxe4 {[%clk 0:01:06]}  Rxc4 {[%clk 0:01:48]} 25. Bd6 {[%clk 0:01:06]}  Rd8 {[%clk 0:01:39]} 26. Be5 {[%clk 0:00:58]}  Rc1 {[%clk 0:01:29]} 27. h4 {[%clk 0:00:48]}  Rxe1+ {[%clk 0:01:25]} 28. Rxe1 {[%clk 0:00:47]}  f6 {[%clk 0:01:20]} 29. Bg3 {[%clk 0:00:41]}  Rxd4 {[%clk 0:01:18]} 30. Bg6 {[%clk 0:00:41]}  e5 {[%clk 0:01:12]} 31. f3 {[%clk 0:00:32]}  Kf8 {[%clk 0:01:11]} 32. Bf2 {[%clk 0:00:29]}  Rd2 {[%clk 0:01:05]} 33. Be3 {[%clk 0:00:26]}  Rxa2 {[%clk 0:01:02]} 34. Rd1 {[%clk 0:00:24]}  Ke7 {[%clk 0:00:54]} 35. Bc1 {[%clk 0:00:17]}  Ra1 {[%clk 0:00:48]} 36. Kh2 {[%clk 0:00:14]}  Rxc1 {[%clk 0:00:47]} 37. Rd7+ {[%clk 0:00:00]}  Kxd7 {[%clk 0:00:46]} 0-1


[Site "https://www.chess.com"]